fUST/lending_fUST_20250719
["ID","MTS","AMOUNT","RATE_DAILY","PERIOD"]
[373101112,1752859859523,-324.0,0.00022833,3]
[373101114,1752859859533,-324.0,0.00022833,3]
[373101116,1752859859543,-324.0,0.00022833,3]
[373101118,1752859859552,-324.0,0.00022833,3]
[373101120,1752859859562,-324.0,0.00022833,3]
[373101122,1752859859571,-324.0,0.00022833,3]
[373101124,1752859859580,-324.0,0.00022833,3]
[373101126,1752859859589,-324.0,0.00022833,3]
[373101128,1752859859598,-160.0,0.00022833,3]
[373101130,1752859859607,-1752.0,0.00022833,3]
[373101132,1752859859617,-1752.0,0.00022833,3]
[373101134,1752859859626,-1752.0,0.00022833,3]
[373101136,1752859859635,-1752.0,0.00022833,3]
[373101138,1752859859644,-1752.0,0.00022833,3]
[373101139,1752859859654,-1752.0,0.00022833,3]
[373101141,1752859859663,-1752.0,0.00022833,3]
[373101144,1752859859672,-1752.0,0.00022833,3]
[373101145,1752859859682,-1752.0,0.00022833,3]
[373101155,1752859859758,-1752.0,0.00022833,3]
[373101157,1752859859775,-1752.0,0.00022833,3]
[373101159,1752859859785,-1752.0,0.00022833,3]
[373101161,1752859859794,-1752.0,0.00022833,3]
[373101163,1752859859804,-1752.0,0.00022833,3]
[373101165,1752859859814,-324.0,0.00022833,3]
[373101167,1752859859824,-324.0,0.00022833,3]
[373101169,1752859859834,-324.0,0.00022833,3]
[373101171,1752859859844,-324.0,0.00022833,3]
[373101173,1752859859853,-1752.0,0.00022833,3]
[373101175,1752859859863,-324.0,0.00022833,3]
[373101177,1752859859873,-1752.0,0.00022833,3]
[373101179,1752859859882,-324.0,0.00022833,3]
[373101181,1752859859891,-324.0,0.00022833,3]
[373101183,1752859859901,-1752.0,0.00022833,3]
[373101185,1752859859910,-324.0,0.00022833,3]
[373101187,1752859859919,-1752.0,0.00022833,3]
[373101189,1752859859929,-324.0,0.00022833,3]
[373101191,1752859859939,-1752.0,0.00022833,3]
[373101193,1752859859948,-324.0,0.00022833,3]
[373101195,1752859859957,-1752.0,0.00022833,3]
[373101197,1752859859967,-324.0,0.00022833,3]
[373101199,1752859859976,-324.0,0.00022833,3]
[373101201,1752859859985,-1752.0,0.00022833,3]
[373101203,1752859859995,-324.0,0.00022833,3]
[373101205,1752859860004,-1752.0,0.00022833,3]
[373101207,1752859860014,-324.0,0.00022833,3]
[373101209,1752859860024,-324.0,0.00022833,3]
[373101211,1752859860034,-1752.0,0.00022833,3]
[373101213,1752859860044,-324.0,0.00022833,3]
[373101215,1752859860054,-1752.0,0.00022833,3]
[373101217,1752859860064,-324.0,0.00022833,3]
[373101219,1752859860074,-1752.0,0.00022833,3]
[373101221,1752859860083,-324.0,0.00022833,3]
[373101223,1752859860093,-1752.0,0.00022833,3]
[373101225,1752859860102,-324.0,0.00022833,3]
[373101227,1752859860113,-324.0,0.00022833,3]
[373101229,1752859860123,-324.0,0.00022833,3]
[373101231,1752859860133,-324.0,0.00022833,3]
[373101233,1752859860141,-1752.0,0.00022833,3]
[373101235,1752859860151,-324.0,0.00022833,3]
[373101237,1752859860160,-1752.0,0.00022833,3]
[373101239,1752859860169,-1752.0,0.00022833,3]
[373101241,1752859860179,-324.0,0.00022833,3]
[373101243,1752859860188,-1752.0,0.00022833,3]
[373101245,1752859860197,-1752.0,0.00022833,3]
[373101246,1752859860206,-1752.0,0.00022833,3]
[373101248,1752859860216,-1752.0,0.00022833,3]
[373101250,1752859860225,-1752.0,0.00022833,3]
[373101253,1752859860235,-1752.0,0.00022833,3]
[373101254,1752859860244,-1752.0,0.00022833,3]
[373101256,1752859860254,-1752.0,0.00022833,3]
[373101258,1752859860263,-1752.0,0.00022833,3]
[373101260,1752859860272,-1752.0,0.00022833,3]
[373101262,1752859860283,-1752.0,0.00022833,3]
[373101264,1752859860292,-160.0,0.00022833,3]
[373101266,1752859860303,-1752.0,0.00022833,3]
[373101268,1752859860312,-1752.0,0.00022833,3]
[373101270,1752859860322,-1752.0,0.00022833,3]
[373101272,1752859860333,-1752.0,0.00022833,3]
[373101274,1752859860342,-1752.0,0.00022833,3]
[373101276,1752859860352,-1336.31498431,0.00022833,3]
[373101278,1752859860361,-1752.0,0.00022833,3]
[373101280,1752859860371,-154.0,0.00022833,3]
[373101282,1752859860381,-324.0,0.00022833,3]
[373101284,1752859860391,-324.0,0.00022833,3]
[373101286,1752859860400,-324.0,0.00022833,3]
[373101288,1752859860410,-324.0,0.00022833,3]
[373101290,1752859860420,-324.0,0.00022833,3]
[373101292,1752859860430,-152.0,0.00022833,3]
[373101294,1752859860439,-152.81403748,0.00022833,3]
[373101296,1752859860449,-800.0,0.00022885,2]
[373101298,1752859860459,-2839.99,0.000229,7]
[373101300,1752859860468,-21478.24,0.000229,7]
[373101302,1752859860478,-6147.68,0.000229,7]
[373101304,1752859860487,-76202.87,0.000229,2]
[373101306,1752859860498,-151.0,0.000229,7]
[373101308,1752859860507,-151.0,0.000229,7]
[373101310,1752859860517,-163.130764,0.000229,7]
[373101312,1752859860526,-151.0,0.000229,7]
[373101314,1752859860536,-151.0,0.000229,7]
[373101316,1752859860545,-151.0,0.000229,7]
[373101318,1752859860555,-151.0,0.000229,7]
[373101320,1752859860564,-151.0,0.000229,7]
[373101322,1752859860574,-151.0,0.000229,7]
[373101324,1752859860583,-151.0,0.000229,7]
[373101326,1752859860592,-151.0,0.000229,7]
[373101328,1752859860602,-182.551168,0.000229,7]
[373101330,1752859860611,-182.551168,0.000229,7]
[373101331,1752859860620,-157.924544,0.000229,7]
[373101333,1752859860630,-242.526265,0.000229,7]
[373101335,1752859860640,-261.556054,0.000229,7]
[373101337,1752859860649,-261.556054,0.000229,7]
[373101339,1752859860659,-151.0,0.000229,7]
[373101341,1752859860669,-151.0,0.000229,7]
[373101344,1752859860680,-151.0,0.000229,7]
[373101345,1752859860691,-441.037214,0.000229,7]
[373101348,1752859860702,-441.037214,0.000229,7]
[373101350,1752859860712,-151.0,0.000229,7]
[373101352,1752859860722,-185.992018,0.000229,7]
[373101353,1752859860731,-160.0,0.000229,3]
[373101356,1752859860741,-151.0,0.000229,7]
[373101357,1752859860751,-151.0,0.000229,7]
[373101359,1752859860760,-151.0,0.000229,7]
[373101361,1752859860775,-476.25663856,0.000229,3]
[373101363,1752859860785,-800.0,0.00022908,2]
[373101365,1752859860795,-1626.32430718,0.00022931,2]
[373101367,1752859860806,-519.39640682,0.00022931,2]
[373101370,1752859860816,-2793.82597726,0.00022931,2]
[373101371,1752859860825,-1377.13919086,0.00022931,2]
[373101374,1752859860835,-926.04445545,0.00022931,2]
[373101376,1752859860846,-1677.08971373,0.00022931,2]
[373101377,1752859860855,-200.38955432,0.00022932,2]
[373101379,1752859860865,-500.0,0.00022944,2]
[373101381,1752859860874,-1836.73839674,0.00022969,8]
[373101383,1752859860884,-7017.70005915,0.0002298,2]
[373101385,1752859860893,-577.0505339,0.00022986,2]
[373101387,1752859860903,-500.0,0.00023,4]
[373101389,1752859860912,-500.0,0.00023,3]
[373101391,1752859860922,-500.0,0.00023,4]
[373101393,1752859860931,-500.0,0.00023,3]
[373101395,1752859860940,-1335.2765708,0.00023,2]
[373101397,1752859860949,-160.0,0.00023,3]
[373101399,1752859860959,-65770.20339797,0.00023,10]
[373101401,1752859860969,-10978.34548298,0.00023,5]
[373101403,1752859860978,-160.0,0.00023,3]
[373101405,1752859860987,-160.0,0.00023,3]
[373101407,1752859860998,-151.0,0.00023,7]
[373101409,1752859861007,-151.0,0.00023,7]
[373101411,1752859861016,-245.00132,0.00023,10]
[373101413,1752859861026,-215.63268315,0.00023,3]
[373101415,1752859861035,-160.0,0.00023,3]
[373101417,1752859861045,-160.0,0.00023,3]
[373101418,1752859861054,-1963.90109368,0.00023,2]
[373101420,1752859861063,-525.75194068,0.00023,3]
[373101422,1752859861073,-74249.28284406,0.00023,10]
[373101424,1752859861082,-160.0,0.00023,3]
[373101426,1752859861092,-214.4881157,0.00023,10]
[373101428,1752859861102,-230.89969799,0.00023,3]
[373101430,1752859861111,-12610.43989422,0.00023,10]
[373101432,1752859861120,-200.0,0.00023,2]
[373101434,1752859861130,-839.30593155,0.00023,3]
[373101436,1752859861139,-2250.727,0.00023,2]
[373101438,1752859861150,-476.25663856,0.00023,10]
[373101440,1752859861159,-205.0,0.0002301,2]
[373101442,1752859861168,-204.0,0.00023014,7]
[373101444,1752859861178,-245.00132,0.00023015,2]
[373101446,1752859861187,-1000.0,0.00023021,2]
[373101448,1752859861197,-518.62527828,0.00023021,2]
[373101450,1752859861207,-250.0,0.00023021,2]
[373101460,1752859861289,-980.0,0.00023026,2]
[373101462,1752859861299,-675.14634868,0.00023029,2]
[373101464,1752859861308,-463.46,0.0002303,2]
[373101466,1752859861318,-667.15134785,0.0002303,2]
[373101468,1752859861328,-1721.04085082,0.00023033,2]
[373101470,1752859861337,-599.68,0.00023033,2]
[373101472,1752859861347,-1227.66807649,0.00023033,2]
[373101474,1752859861357,-500.0,0.00023036,2]
[373101476,1752859861366,-200.38955432,0.00023041,2]
[373101478,1752859861376,-2669.07589003,0.00023044,2]
[373101480,1752859861385,-451.05818763,0.00023068,2]
[373101482,1752859861395,-153.0,0.00023068,2]
[373101484,1752859861404,-159.194728,0.00023136,9]
[373101486,1752859861413,-200.38955432,0.00023151,2]
[373101488,1752859861423,-159.7855054,0.00023178,2]
[373101490,1752859861433,-178.0805666,0.00023178,2]
[373101491,1752859861442,-178.0805666,0.00023178,2]
[373101494,1752859861452,-159.7855054,0.00023178,2]
[373101496,1752859861461,-10000.00632106,0.000232,10]
[373101498,1752859861471,-1836.73839674,0.00023245,8]
[373101499,1752859861481,-200.38955432,0.0002326,2]
[373101501,1752859861490,-245.0,0.00023288,7]
[373101503,1752859861500,-151.0,0.00023288,2]
[373101505,1752859861509,-650.54,0.000233,5]
[373101507,1752859861519,-151.0,0.000233,7]
[373101510,1752859861531,-441.037214,0.000233,7]
[373101511,1752859861540,-441.037214,0.000233,7]
[373101514,1752859861550,-151.0,0.000233,7]
[373101515,1752859861560,-151.0,0.000233,7]
[373101517,1752859861569,-151.0,0.000233,7]
[373101519,1752859861579,-151.0,0.000233,7]
[373101521,1752859861588,-10000.0,0.000233,10]
[373101523,1752859861597,-500.0,0.0002331,2]
[373101525,1752859861607,-160.0,0.0002331,6]
[373101527,1752859861616,-205.0,0.0002332,2]
[373101529,1752859861626,-2055.93,0.00023331,2]
[373101531,1752859861636,-153.0,0.00023342,2]
[373101534,1752859861646,-972.320315,0.00023358,2]
[373101535,1752859861655,-2674.4,0.00023361,4]
[373101538,1752859861665,-200.38955432,0.0002337,2]
[373101540,1752859861674,-2669.07589003,0.00023371,2]
[373101541,1752859861683,-2156.0,0.00023409,2]
[373101543,1752859861692,-968.0,0.00023409,2]
[373101545,1752859861702,-407.0,0.00023409,2]
[373101547,1752859861712,-2674.4,0.00023461,6]
[373101549,1752859861721,-200.38955432,0.00023479,2]
[373101551,1752859861731,-178.0805666,0.00023479,2]
[373101553,1752859861740,-245.00132,0.000235,10]
[373101555,1752859861750,-252.2862239,0.00023507,2]
[373101556,1752859861759,-286.841231,0.00023507,7]
[373101557,1752859861773,-1836.73839674,0.00023521,9]
[373101558,1752859861783,-150.0,0.00023529,2]
[373101559,1752859861793,-150.0,0.00023529,2]
[373101560,1752859861803,-150.0,0.00023529,2]
[373101561,1752859861813,-150.0,0.00023529,2]
[373101562,1752859861822,-150.0,0.00023529,2]
[373101563,1752859861832,-150.0,0.00023529,2]
[373101564,1752859861842,-151.0,0.00023529,7]
[373101565,1752859861852,-151.0,0.00023561,7]
[373101566,1752859861862,-231.39,0.00023561,2]
[373101567,1752859861872,-231.39,0.00023561,2]
[373101568,1752859861882,-231.39,0.00023561,2]
[373101569,1752859861891,-231.39,0.00023561,2]
[373101570,1752859861901,-231.39,0.00023561,2]
[373101571,1752859861910,-231.39,0.00023561,2]
[373101572,1752859861920,-231.39,0.00023561,2]
[373101573,1752859861929,-231.39,0.00023561,2]
[373101574,1752859861940,-231.39,0.00023561,2]
[373101575,1752859861950,-231.39,0.00023561,2]
[373101576,1752859861959,-231.39,0.00023561,2]
[373101577,1752859861968,-231.39,0.00023561,2]
[373101578,1752859861978,-231.39,0.00023561,2]
[373101579,1752859861987,-231.39,0.00023561,2]
[373101580,1752859861997,-231.39,0.00023561,2]
[373101581,1752859862006,-231.39,0.00023561,2]
[373101582,1752859862016,-231.39,0.00023561,2]
[373101583,1752859862027,-231.39,0.00023561,2]
[373101584,1752859862036,-231.39,0.00023561,2]
[373101585,1752859862047,-231.39,0.00023561,2]
[373101587,1752859862056,-231.39,0.00023561,2]
[373101589,1752859862065,-231.39,0.00023561,2]
[373101591,1752859862074,-231.39,0.00023561,2]
[373101593,1752859862084,-231.50710723,0.00023561,2]
[373101595,1752859862093,-2674.4,0.00023561,3]
[373101597,1752859862102,-220.02706467,0.00023562,2]
[373101599,1752859862112,-1500.0,0.00023568,2]
[373101601,1752859862121,-350.0,0.00023568,2]
[373101603,1752859862130,-500.0,0.00023584,2]
[373101605,1752859862140,-200.38955432,0.00023589,2]
[373101607,1752859862149,-151.0,0.000236,7]
[373101609,1752859862158,-151.0,0.000236,7]
[373101611,1752859862167,-252.2862239,0.00023616,2]
[373101612,1752859862177,-205.0,0.0002363,2]
[373101615,1752859862186,-2674.4,0.00023661,7]
[373101616,1752859862196,-2669.07589003,0.00023698,2]
[373101619,1752859862207,-200.38955432,0.00023699,2]
[373101621,1752859862217,-819.39482928,0.000237,30]
[373101623,1752859862226,-252.2862239,0.00023726,2]
[373101625,1752859862236,-991.583453,0.00023753,3]
[373101627,1752859862246,-2674.4,0.00023761,5]
[373101629,1752859862255,-1836.73839674,0.00023797,9]
[373101630,1752859862264,-9850.44153756,0.000238,2]
[373101632,1752859862273,-160.0,0.000238,3]
[373101634,1752859862284,-151.0,0.000238,7]
[373101636,1752859862293,-2839.99,0.000238,7]
[373101638,1752859862302,-21478.24,0.000238,7]
[373101640,1752859862312,-6147.68,0.000238,7]
[373101642,1752859862321,-76202.87,0.000238,2]
[373101644,1752859862330,-151.0,0.000238,7]
[373101646,1752859862339,-151.0,0.000238,7]
[373101648,1752859862349,-151.0,0.000238,7]
[373101650,1752859862358,-151.0,0.000238,7]
[373101652,1752859862367,-151.0,0.000238,7]
[373101654,1752859862378,-151.0,0.000238,7]
[373101656,1752859862387,-151.0,0.000238,7]
[373101658,1752859862397,-151.0,0.000238,7]
[373101660,1752859862407,-151.0,0.000238,7]
[373101662,1752859862416,-182.551168,0.000238,7]
[373101664,1752859862426,-182.551168,0.000238,7]
[373101666,1752859862436,-242.526265,0.000238,7]
[373101668,1752859862446,-261.556054,0.000238,7]
[373101670,1752859862456,-261.556054,0.000238,7]
[373101672,1752859862466,-151.0,0.000238,7]
[373101674,1752859862477,-151.0,0.000238,7]
[373101676,1752859862490,-200.38955432,0.00023808,2]
[373101678,1752859862499,-245.00132,0.00023817,2]
[373101680,1752859862509,-252.2862239,0.00023836,2]
[373101682,1752859862519,-500.0,0.00023858,2]
[373101684,1752859862531,-2674.4,0.00023861,4]
[373101686,1752859862541,-159.6791774,0.0002389,2]
[373101688,1752859862551,-177.5756091,0.0002389,2]
[373101690,1752859862561,-107880.05252569,0.000239,4]
[373101692,1752859862570,-151.0,0.000239,7]
[373101694,1752859862580,-151.0,0.000239,7]
[373101696,1752859862590,-441.037214,0.000239,7]
[373101698,1752859862599,-441.037214,0.000239,7]
[373101706,1752859862608,-151.0,0.000239,7]
[373101709,1752859862683,-151.0,0.000239,7]
[373101711,1752859862693,-151.0,0.000239,7]
[373101713,1752859862703,-151.0,0.000239,7]
[373101715,1752859862713,-2280.18641897,0.000239,2]
[373101717,1752859862722,-500.0,0.00023904,2]
[373101719,1752859862731,-200.38955432,0.00023918,2]
[373101721,1752859862740,-205.0,0.0002394,2]
[373101723,1752859862750,-2674.4,0.00023961,5]
[373101725,1752859862759,-252.2862239,0.00023973,2]
[373101727,1752859862773,-1692.95815998,0.00024,2]
[373101729,1752859862784,-10145.66484196,0.00024,2]
[373101731,1752859862794,-161.84068091,0.00024,2]
[373101732,1752859862803,-453.68070503,0.00024,2]
[373101735,1752859862815,-160.0,0.00024,7]
[373101736,1752859862825,-160.0,0.00024,10]
[373101738,1752859862834,-160.0,0.00024,7]
[373101740,1752859862846,-160.0,0.00024,7]
[373101742,1752859862856,-160.0,0.00024,10]
[373101744,1752859862866,-4293.6166865,0.00024,7]
[373101746,1752859862876,-245.00132,0.00024,10]
[373101748,1752859862885,-245.00132,0.00024,7]
[373101750,1752859862895,-215.63268315,0.00024,7]
[373101752,1752859862904,-215.63268315,0.00024,10]
[373101755,1752859862915,-215.63268315,0.00024,10]
[373101757,1752859862925,-8858.0506101,0.00024,2]
[373101759,1752859862935,-160.0,0.00024,7]
[373101761,1752859862944,-160.0,0.00024,10]
[373101762,1752859862953,-160.0,0.00024,10]
[373101765,1752859862963,-160.0,0.00024,7]
[373101767,1752859862973,-160.0,0.00024,10]
[373101769,1752859862982,-160.0,0.00024,10]
[373101771,1752859862991,-525.75194068,0.00024,7]
[373101773,1752859863001,-525.75194068,0.00024,10]
[373101775,1752859863010,-525.75194068,0.00024,10]
[373101777,1752859863019,-160.0,0.00024,7]
[373101778,1752859863030,-160.0,0.00024,10]
[373101781,1752859863040,-160.0,0.00024,10]
[373101783,1752859863050,-230.89969799,0.00024,7]
[373101784,1752859863059,-230.89969799,0.00024,10]
[373101786,1752859863069,-230.89969799,0.00024,10]
[373101788,1752859863079,-839.30593155,0.00024,7]
[373101790,1752859863088,-839.30593155,0.00024,10]
[373101792,1752859863098,-7619.94751905,0.00024013,2]
[373101794,1752859863108,-319.4629674,0.00024013,2]
[373101796,1752859863118,-178.0805666,0.00024013,2]
[373101798,1752859863127,-1153.917266,0.00024013,2]
[373101800,1752859863136,-577.0505339,0.00024013,2]
[373101802,1752859863146,-178.0805666,0.00024013,2]
[373101804,1752859863155,-577.0505339,0.00024013,2]
[373101806,1752859863165,-177.9913646,0.00024013,2]
[373101808,1752859863177,-577.0505339,0.00024013,2]
[373101810,1752859863188,-577.0505339,0.00024013,2]
[373101812,1752859863199,-577.0505339,0.00024013,2]
[373101814,1752859863211,-577.0505339,0.00024013,2]
[373101816,1752859863224,-577.0505339,0.00024013,2]
[373101818,1752859863235,-577.0505339,0.00024013,2]
[373101820,1752859863244,-576.2234258,0.00024013,2]
[373101822,1752859863254,-160.0,0.00024014,7]
[373101824,1752859863264,-2669.07589003,0.00024025,2]
[373101826,1752859863273,-245.00132,0.00024035,6]
[373101829,1752859863288,-200.38955432,0.00024055,2]
[373101831,1752859863298,-2674.4,0.00024061,3]
[373101833,1752859863307,-248.71531821,0.00024069,2]
[373101835,1752859863317,-1836.73839674,0.00024072,10]
[373101837,1752859863327,-252.2862239,0.00024082,2]
[373101838,1752859863336,-500.0,0.00024091,2]
[373101840,1752859863345,-245.00132,0.000241,9]
[373101842,1752859863355,-153.0,0.0002411,2]
[373101844,1752859863365,-153.0,0.0002411,2]
[373101846,1752859863374,-153.0,0.0002411,2]
[373101848,1752859863383,-2000.0,0.00024116,2]
[373101851,1752859863393,-401.44545533,0.00024116,2]
[373101852,1752859863403,-500.0,0.00024132,2]
[373101854,1752859863412,-151.0,0.00024161,7]
[373101856,1752859863422,-2674.4,0.00024161,7]
[373101858,1752859863431,-200.38955432,0.00024164,2]
[373101861,1752859863441,-206.0,0.00024164,7]
[373101863,1752859863450,-153.0,0.00024164,2]
[373101865,1752859863461,-252.2862239,0.00024192,2]
[373101867,1752859863470,-153.0,0.00024192,2]
[373101869,1752859863479,-23268.62089825,0.000242,2]
[373101871,1752859863489,-245.00132,0.00024203,9]
[373101873,1752859863498,-245.00132,0.00024225,7]
[373101875,1752859863508,-205.0,0.0002425,2]
[373101877,1752859863517,-2674.4,0.00024261,2]
[373101879,1752859863527,-28015.86795282,0.000243,7]
[373101898,1752859863696,150.0,0.00014618,2]
[373101903,1752859863742,150.0,0.00015314,2]
[373101910,1752859863811,150.0,0.00016011,2]
[373101943,1752859864123,5000.0,0.00016454,2]
[373101980,1752859864468,150.0,0.00019183,30]
[373102061,1752859867477,5000.0,0.00016454,2]
[373102174,1752859883388,5000.0,0.00016454,2]
[373102175,1752859898935,5000.0,0.00016454,2]
[373102176,1752859907019,460.0,0.00016454,2]
[373102177,1752859909420,460.0,0.00016454,2]
[373102178,1752859914056,5000.0,0.00016454,2]
[373102179,1752859919299,150.0,0.00014594,2]
[373102180,1752859919738,150.0,0.00015289,2]
[373102181,1752859922297,300.0,0.00016454,2]
[373102182,1752859922612,150.0,0.00015984,2]
[373102183,1752859928687,460.0,0.00016454,2]
[373102184,1752859929249,5000.0,0.00016454,2]
[373102185,1752859942170,460.0,0.00016454,2]
[373102187,1752859944976,5000.0,0.00016454,2]
[373102188,1752859949192,514.762387,0.00013699,2]
[373102189,1752859959395,460.0,0.00016454,2]
[373102190,1752859962810,1083.88304296,0.00016454,2]
[373102191,1752859982871,300.0,0.00016454,2]
[373102192,1752859983121,460.0,0.00016454,2]
[373102193,1752859993488,150.0,0.00014604,2]
[373102194,1752860001283,460.0,0.00016454,2]
[373102195,1752860004680,222.331943,0.00015962,2]
[373102196,1752860005062,181.82795827,0.0001613,2]
[373102197,1752860005157,460.0,0.00016454,2]
[373102198,1752860036464,460.0,0.00016454,2]
[373102199,1752860037914,165.360861,0.00015606,2]
[373102200,1752860038128,165.360861,0.00015658,2]
[373102201,1752860038336,165.360861,0.0001571,2]
[373102202,1752860038766,165.360861,0.00015762,2]
[373102203,1752860065597,460.0,0.00016454,2]
[373102204,1752860069642,499.12,0.00016454,2]
[373102205,1752860073133,460.0,0.00016454,2]
[373102206,1752860078312,460.0,0.00016454,2]
[373102207,1752860086237,460.0,0.00016454,2]
[373102209,1752860099139,460.0,0.00016454,2]
[373102211,1752860123702,460.0,0.00016454,2]
[373102212,1752860145891,460.0,0.00016454,2]
[373102213,1752860149127,460.0,0.00016454,2]
[373102214,1752860164581,460.0,0.00016454,2]
[373102215,1752860171165,460.0,0.00016454,2]
[373102216,1752860246785,460.0,0.00016454,2]
[373102217,1752860252836,460.0,0.00016454,2]
[373102218,1752860266618,460.0,0.00016454,2]
[373102219,1752860285895,300.0,0.00016454,2]
[373102220,1752860302735,460.0,0.00016454,2]
[373102221,1752860323211,460.0,0.00016454,2]
[373102222,1752860326901,460.0,0.00016454,2]
[373102223,1752860341123,460.0,0.00016454,2]
[373102224,1752860346432,460.0,0.00016454,2]
[373102225,1752860353771,500.0,0.00016454,2]
[373102226,1752860364853,460.0,0.00016454,2]
[373102227,1752860369608,460.0,0.00016454,2]
[373102228,1752860393261,460.0,0.00016454,2]
[373102229,1752860402344,300.0,0.00016454,2]
[373102230,1752860404788,460.0,0.00016454,2]
[373102231,1752860408440,462.82284875,0.00016454,2]
[373102232,1752860414030,460.0,0.00016454,2]
[373102233,1752860417220,460.0,0.00016454,2]
[373102234,1752860419702,460.0,0.00016454,2]
[373102235,1752860425987,553.14,0.00016446,3]
[373102236,1752860426693,460.0,0.00016454,2]
[373102237,1752860429252,277.00913632,0.00016454,2]
[373102238,1752860432312,460.0,0.00016454,2]
[373102239,1752860432992,460.0,0.00016454,2]
[373102240,1752860433194,460.0,0.00016454,2]
[373102241,1752860438038,460.0,0.00016454,2]
[373102243,1752860438915,460.0,0.00016454,2]
[373102244,1752860439851,460.0,0.00016454,2]
[373102245,1752860440740,-349.50700698,0.00016455,2]
[373102246,1752860440769,-460.0,0.00016455,2]
[373102247,1752860440799,-460.0,0.00016455,2]
[373102248,1752860440828,-590.96505809,0.00016455,2]
[373102249,1752860440858,-461.43754657,0.00016455,2]
[373102250,1752860440886,-460.0,0.00016455,2]
[373102251,1752860440915,-460.0,0.00016455,2]
[373102252,1752860440948,-460.0,0.00016455,2]
[373102253,1752860440977,-460.8337748,0.00016455,2]
[373102254,1752860441006,-460.0,0.00016455,2]
[373102255,1752860441037,-294.51322712,0.00016455,2]
[373102256,1752860441176,-165.48677288,0.00016455,2]
[373102257,1752860441205,-460.0,0.00016455,2]
[373102258,1752860441234,-460.0,0.00016455,2]
[373102259,1752860441264,-460.0,0.00016455,2]
[373102260,1752860441294,-460.0,0.00016455,2]
[373102261,1752860441325,-460.0,0.00016455,2]
[373102262,1752860441354,-460.0,0.00016455,2]
[373102263,1752860441383,-460.0,0.00016455,2]
[373102264,1752860441412,-460.0,0.00016455,2]
[373102265,1752860441440,-460.0,0.00016455,2]
[373102266,1752860441468,-304.064,0.00016455,2]
[373102267,1752860441497,-320.89845424,0.00016455,2]
[373102268,1752860441797,-139.10154576,0.00016455,2]
[373102269,1752860441826,-460.0,0.00016455,2]
[373102270,1752860441856,-460.0,0.00016455,2]
[373102271,1752860441886,-460.0,0.00016455,2]
[373102272,1752860441915,-460.0,0.00016455,2]
[373102273,1752860441954,-460.0,0.00016455,2]
[373102274,1752860441993,-460.0,0.00016455,2]
[373102275,1752860442022,-460.0,0.00016455,2]
[373102276,1752860442055,-460.0,0.00016455,2]
[373102277,1752860442086,-460.0,0.00016455,2]
[373102278,1752860442114,-460.0,0.00016455,2]
[373102279,1752860442144,-59.0497747,0.00016455,2]
[373102280,1752860442269,-403.69735908,0.00016455,2]